[Event "Vugar Gashimov Memorial Blitz 2024"]
[Site "Shusha"]
[Date "2024.09.28"]
[Round "12.1"]
[White "Mamedyarov, Shakhriyar"]
[Black "Abdusattorov, Nodirbek"]
[Result "0-1"]
[ECO "D02"]
[WhiteElo "2733"]
[BlackElo "2766"]
[Annotator "RC"]
[PlyCount "132"]
[EventDate "2024.09.28"]
[EventType "tourn"]
[EventCountry "AZE"]
[SourceTitle "playchess.com"]
[Source "ChessBase"]
[SourceQuality "1"]
[TimeControl "180+2"]

1. Nf3 {[%emt 0:00:01]} d5 {[%emt 0:00:02]} 2. g3 {[%emt 0:00:01]} Nf6 {[%emt 0:00:02]} 3. Bg2 {[%emt 0:00:01]} c5 {[%emt 0:00:01]} 4. O-O {[%emt 0:00:03]} Nc6 {[%emt 0:00:02]} 5. d4 {[%emt 0:00:05]} e6 {[%emt 0:00:13]} 6. a3 {[%emt 0:00:02]} cxd4 {[%emt 0:00:06]} 7. Nxd4 {[%emt 0:00:01]} Bc5 {[%emt 0:00:00]} 8. Nxc6 {[%emt 0:00:03]} bxc6 {[%emt 0:02:52]} 9. c4 {[%emt 0:00:01]} O-O {[%emt 0:00:00]} 10. Qc2 {[%emt 0:00:01]} Be7 {[%emt 0:00:00]} 11. Rd1 {[%emt 0:00:04]} Ba6 {[%emt 0:00:00]} 12. b3 {[%emt 0:00:10]} Qb6 {[%emt 0:00:00]} 13. Be3 {[%emt 0:00:07]} c5 {[%emt 0:00:00]} 14. cxd5 {[%emt 0:00:23]} exd5 {[%emt 0:00:00]} 15. Bg5 {[%emt 0:00:13]} Rab8 {[%emt 0:00:00]} 16. Nc3 {[%emt 0:00:05]} d4 {[%emt 0:00:00]} 17. Bxf6 {[%emt 0:00:01]} Qxf6 {[%emt 0:00:00]} 18. Nd5 {[%emt 0:00:02]} Qe5 {[%emt 0:00:00]} 19. b4 {[%emt 0:00:19]} Bxe2 {[%emt 0:00:00]} 20. Re1 {[%emt 0:00:15]} d3 {[%emt 0:00:00]} 21. Nxe7+ {[%emt 0:00:02]} Qxe7 {[%emt 0:00:00]} 22. Qxd3 {[%emt 0:00:01]} Bxd3 {[%emt 0:00:00]} 23. Rxe7 {[%emt 0:00:01]} cxb4 {[%emt 0:00:00]} 24. axb4 {[%emt 0:00:02]} a6 {[%emt 0:00:00]} 25. Bb7 {[%emt 0:00:37]} g6 {[%emt 0:00:06]} 26. Rc1 {[%emt 0:00:04]} Rfe8 {[%emt 0:00:04]} 27. Rec7 {[%emt 0:00:37]} Re6 {[%emt 0:00:01]} 28. h4 {[%emt 0:00:21]} Kg7 {[%emt 0:00:03]} 29. Bd5 {[%emt 0:00:07]} Rf6 {[%emt 0:00:01]} 30. R1c3 {[%emt 0:00:01]} Bf5 {[%emt 0:00:11]} 31. R3c4 {[%emt 0:00:07]} Rd8 {[%emt 0:00:02]} 32. R4c5 {[%emt 0:00:01]} Rb8 {[%emt 0:00:01]} 33. Rc4 {[%emt 0:00:01]} h5 {[%emt 0:00:03]} 34. Ra7 {[%emt 0:00:02]} Rd8 {[%emt 0:00:01]} 35. Rc5 {[%emt 0:00:01]} Bg4 {[%emt 0:00:04]} 36. Ra5 {[%emt 0:00:04]} Rdd6 {[%emt 0:00:00]} 37. Kf1 {[%emt 0:00:02]} Rb6 {[%emt 0:00:02]} 38. Ra4 {[%emt 0:00:04]} Bd1 {[%emt 0:00:02]} 39. Ra1 {[%emt 0:00:01]} Bc2 {[%emt 0:00:01]} 40. Kg1 {[%emt 0:00:03]} Bd3 {[%emt 0:00:01]} 41. Ra3 {[%emt 0:00:00]} Bb5 {[%emt 0:00:03]} 42. Re3 {[%emt 0:00:01]} Rbd6 {[%emt 0:00:00]} 43. Bb3 {[%emt 0:00:02]} Rd2 {[%emt 0:00:02]} 44. f4 {[%emt 0:00:03]} Rb2 {[%emt 0:00:01]} 45. Bd5 {[%emt 0:00:03]} Rd2 {[%emt 0:00:05]} 46. Re5 {[%emt 0:00:00]} Rd4 {[%emt 0:00:07]} 47. Kf2 {[%emt 0:00:01]} Rd2+ {[%emt 0:00:06]} 48. Ke3 {[%emt 0:00:03]} Rd3+ {[%emt 0:00:00]} 49. Kf2 {[%emt 0:00:00]} Kf8 {[%emt 0:00:03]} 50. Ra8+ {[%emt 0:00:01]} Kg7 {[%emt 0:00:01]} 51. Ra7 {[%emt 0:00:01]} Rd1 {[%emt 0:00:04]} 52. Bf3 {[%emt 0:00:02]} Rd2+ {[%emt 0:00:01]} 53. Ke3 {[%emt 0:00:01]} Rd3+ {[%emt 0:00:01]} 54. Kf2 {[%emt 0:00:15]} Rfd6 {[%emt 0:00:01]} 55. Ree7 {[%emt 0:00:00]} Rd2+ {[%emt 0:00:01]} 56. Ke1 {[%emt 0:00:00]} Bc4 {[%emt 0:00:00]} 57. Rac7 {[%emt 0:00:00]} R2d4 {[%emt 0:00:03]} 58. f5 {[%emt 0:00:00]} Bb3 {[%emt 0:00:06]} 59. fxg6 {[%emt 0:00:00]} Kxg6 {[%emt 0:00:01]} 60. Re4 {[%emt 0:00:00]} Rd3 {[%emt 0:00:09]} 61. Rf4 {[%emt 0:00:02]} Re3+ {[%emt 0:00:01]} 62. Kf2 {[%emt 0:00:01]} Re5 {[%emt 0:00:01]} 63. Be4+ {[%emt 0:00:02]} Kg7 {[%emt 0:00:00]} 64. Rc5 {[%emt 0:00:01]} Rde6 {[%emt 0:00:03]} 65. Bf3 {[%emt 0:00:02]} Kg6 {[%emt 0:00:05]} 66. Be4+ {[%emt 0:00:03]} Rxe4 {[%emt 0:00:01]} 0-1

[Event "Vugar Gashimov Memorial Blitz 2024"]
[Site "Shusha"]
[Date "2024.09.28"]
[Round "12.2"]
[White "Artemiev, Vladislav"]
[Black "Rapport, Richard"]
[Result "1-0"]
[ECO "A15"]
[WhiteElo "2701"]
[BlackElo "2715"]
[Annotator "TA"]
[PlyCount "63"]
[EventDate "2024.09.28"]
[EventType "tourn"]
[EventCountry "AZE"]
[SourceTitle "playchess.com"]
[Source "ChessBase"]
[SourceQuality "1"]
[TimeControl "180+2"]

{[%evp 14,63,0,4,13,0,8,-8,0,0,6,0,12,-16,25,-10,6,9,3,0,0,-3,18,24,37,21,0,11,24,7,81,0,0,0,0,0,0,0,0,0,0,0,0,0,8,3,567,517,739,718,1637,1592]} 1. Nf3 {[%emt 0:00:03]} Nf6 {[%emt 0:00:03]} 2. c4 {[%emt 0:00:01]} g6 {[%emt 0:00:01]} 3. b3 {[%emt 0:00:06]} d6 {[%emt 0:00:05]} 4. Bb2 {[%emt 0:00:02]} Bg7 {[%emt 0:00:02]} 5. g3 {[%emt 0:00:02]} O-O {[%emt 0:00:04]} 6. Bg2 {[%emt 0:00:01]} e5 {[%emt 0:00:02]} 7. d3 {[%emt 0:00:02]} Re8 {[%emt 0:00:04]} 8. O-O {[%emt 0:00:03]} a5 {[%emt 0:00:01]} 9. Nc3 {[%emt 0:00:05]} Na6 {[%emt 0:00:02]} 10. a3 {[%emt 0:00:19]} c6 {[%emt 0:00:02] The position is equal.} 11. b4 {[%emt 0:00:23][%cal Bb3b4,Bb4b5][%mdl 32]} Bd7 {[%emt 0:00:11]} 12. b5 {[%emt 0:00:32]} Nc5 {[%emt 0:00:02]} 13. Nd2 {[%emt 0:00:19][%cal Bf3d2,Bd2e4,Be4c5][%mdl 32]} h5 {[%emt 0:00:08][%cal Od6d5]} 14. h4 {[%emt 0:00:16]} Ng4 {[%emt 0:00:12]} 15. bxc6 {[%emt 0:00:02]} bxc6 {[%emt 0:00:02]} 16. Nce4 {[%emt 0:00:01]} Nxe4 {[%emt 0:00:11]} 17. Nxe4 {[%emt 0:00:01]} Rb8 {[%emt 0:00:09]} 18. Bc3 {[%emt 0:00:38]} d5 {[%emt 0:00:01]} 19. Nc5 {[%emt 0:00:04]} Bf5 {[%emt 0:00:13]} 20. e4 {[%emt 0:00:08]} Bc8 {[%emt 0:00:20]} 21. cxd5 {[%emt 0:00:11]} cxd5 {[%emt 0:00:02] [#]} (21... Qd6 $11 {remains equal.} 22. Nb3 cxd5 23. exd5 e4 24. Bxg7 e3) 22. exd5 {[%emt 0:00:03]} ({Better is} 22. Qa4 $1 $16) 22... Rb5 $11 {[%emt 0:00:06]} 23. d4 {[%emt 0:00:01]} Bf5 {[%emt 0:00:36] Hoping for ...e4.} 24. a4 {[%emt 0:00:16]} exd4 {[%emt 0:00:01]} 25. Bxd4 {[%emt 0:00:04]} ({Much worse is} 25. axb5 dxc3 26. Qa4 Re2 $17) 25... Bxd4 {[%emt 0:00:03]} 26. Qxd4 {[%emt 0:00:01]} (26. axb5 $2 {loses.} Bxc5 27. Ra2 Bd7 $19) 26... Rb4 {[%emt 0:00:01]} 27. Qd2 {[%emt 0:00:06]} Qd6 {[%emt 0:00:01]} 28. Rac1 {[%emt 0:00:02]} Rc8 {[%emt 0:00:11]} 29. Ne4 {[%emt 0:00:01]} Rxe4 $4 {[%emt 0:00:04][%mdl 8192] [#]} (29... Qe5 $11 {and Black has nothing to worry.} 30. Rxc8+ Bxc8) 30. Rxc8+ $18 {[%emt 0:00:01] White is clearly winning.} Kh7 {[%emt 0:00:07]} 31. Bxe4 {[%emt 0:00:02]} Bxe4 {[%emt 0:00:03]} 32. Qd4 {[%emt 0:00:01] Weighted Error Value: White=0.10 (very precise) /Black=0.42.  Loses game:     	---       	Black=1      Mistake:       	White=1     	Black=1      Inaccurate:     	White=2     	Black=3      OK:         	White=9     	Black=6      Best:        	White=1     	Black=1} 1-0

[Event "Vugar Gashimov Memorial Blitz 2024"]
[Site "Shusha"]
[Date "2024.09.28"]
[Round "12.3"]
[White "Nepomniachtchi, Ian"]
[Black "Mamedov, Rauf"]
[Result "0-1"]
[ECO "B31"]
[WhiteElo "2755"]
[BlackElo "2637"]
[Annotator "TA"]
[PlyCount "40"]
[EventDate "2024.09.28"]
[EventType "tourn"]
[EventCountry "AZE"]
[SourceTitle "playchess.com"]
[Source "ChessBase"]
[SourceQuality "1"]
[TimeControl "180+2"]

{[%evp 12,40,12,14,61,55,61,50,62,42,57,62,72,62,64,67,64,58,60,43,72,46,66,43,111,73,115,118,161,14,38]} 1. e4 {[%emt 0:00:00]} c5 {[%emt 0:00:01]} 2. Nf3 {[%emt 0:00:02]} Nc6 {[%emt 0:00:01]} 3. Bb5 {[%emt 0:00:01]} Nf6 {[%emt 0:00:00]} 4. Nc3 {[%emt 0:00:02]} g6 {[%emt 0:00:01]} 5. O-O {[%emt 0:00:23]} Bg7 {[%emt 0:00:02]} 6. Re1 {[%emt 0:00:05]} O-O {[%emt 0:00:08]} 7. e5 {[%emt 0:00:06]} Nh5 {[%emt 0:00:05]} (7... Ne8 $11) 8. Bxc6 $14 {[%emt 0:00:04]} dxc6 {[%emt 0:00:58]} 9. d3 $1 {[%emt 0:00:02]} f6 {[%emt 0:00:04] Weiß steht etwas besser.} 10. exf6 {[%emt 0:00:33]} Nxf6 {[%emt 0:00:17]} 11. h3 {[%emt 0:00:06]} Nd5 {[%emt 0:00:04] Verhindert Bf4} 12. Ne4 {[%emt 0:00:04]} b6 {[%emt 0:00:01]} 13. Neg5 {[%emt 0:00:16]} Qd6 {[%emt 0:00:02]} 14. Qe2 {[%emt 0:00:02]} Bd7 {[%emt 0:00:02]} 15. Ne5 {[%emt 0:00:02]} (15. Ne6 {vereinfacht} Bxe6 16. Qxe6+ Qxe6 17. Rxe6 Nb4 18. Re2) 15... Rae8 {[%emt 0:00:02]} 16. Bd2 {[%emt 0:00:02]} (16. Nxd7 {vereinfacht} Qxd7 17. Qe6+ Qxe6 18. Nxe6 Rf5 19. Nxg7 Kxg7 20. b3) 16... Bc8 {[%emt 0:00:02]} 17. Rad1 {[%emt 0:00:02]} Qf6 {[%emt 0:00:02]} ({Vorzuziehen ist} 17... Rf5 $14 18. Ngf3 Ref8) 18. Bc1 {[%emt 0:00:02]} Rd8 {[%emt 0:00:02] [#]} 19. Ngf3 $1 {[%emt 0:00:02]} Rd6 {[%emt 0:00:02] [#]} 20. Nh2 {[%emt 0:00:02] Ein dynamisches Springerpaar.} ({Besser ist} 20. Bg5 $1 $18 {[%cal Rg5f6]} Qf5 21. Qd2) 20... Nf4 {[%emt 0:00:02][%mdl 32768] Gewichteter Fehlerwert: Weiß=0.25 (präzise) /Schwarz=0.26 (präzise) .  Fehler:       	Weiß=1     	Schwarz=1     Ungenau:       	Weiß=2     	Schwarz=3     OK:         	Weiß=4     	Schwarz=3     Bester:       	---       	Schwarz=1     Stark:        	Weiß=2     	---       . Zeitüberschreitung!?} 0-1

[Event "Vugar Gashimov Memorial Blitz 2024"]
[Site "Shusha"]
[Date "2024.09.28"]
[Round "12.4"]
[White "Suleymanli, Aydin"]
[Black "Aravindh, Chithambaram VR."]
[Result "0-1"]
[ECO "C87"]
[WhiteElo "2632"]
[BlackElo "2698"]
[Annotator "TA"]
[PlyCount "60"]
[EventDate "2024.09.28"]
[EventType "tourn"]
[EventCountry "AZE"]
[SourceTitle "playchess.com"]
[Source "ChessBase"]
[SourceQuality "1"]
[TimeControl "180+2"]

{[%evp 19,60,29,24,29,28,32,31,24,28,30,35,20,32,23,32,29,38,32,63,50,38,45,52,-16,-14,-26,-31,-57,-69,-395,-405,-412,-361,-680,-690,-1063,-1018,-29991,-954,-29997,-29998,-29998,-29999]} 1. e4 {[%emt 0:00:01]} e5 {[%emt 0:00:01]} 2. Nf3 {[%emt 0:00:01]} Nc6 {[%emt 0:00:02]} 3. Bb5 {[%emt 0:00:00]} a6 {[%emt 0:00:01]} 4. Ba4 {[%emt 0:00:01]} d6 {[%emt 0:00:01]} 5. O-O {[%emt 0:00:05]} Bg4 {[%emt 0:00:02]} 6. h3 {[%emt 0:00:14]} Bh5 {[%emt 0:00:03]} 7. c3 {[%emt 0:00:15]} Be7 {[%emt 0:00:01]} 8. Re1 {[%emt 0:00:07]} Nf6 {[%emt 0:00:07][%cal Bg8f6,Bf6d7,Bd7c5][%mdl 32]} 9. d3 {[%emt 0:00:01]} O-O {[%emt 0:00:10]} 10. Nbd2 {[%emt 0:00:01]} Nd7 {[%emt 0:00:02]} 11. Nf1 {[%emt 0:00:02]} Nc5 {[%emt 0:00:02]} 12. Bc2 {[%emt 0:00:03][%cal Ba4c2,Bc2b3,Bb3d5][%mdl 32]} Ne6 {[%emt 0:00:03]} 13. Ng3 {[%emt 0:00:09] White is slightly better.} Bxf3 {[%emt 0:00:02]} 14. Qxf3 {[%emt 0:00:02]} Bg5 {[%emt 0:00:01]} 15. Be3 {[%emt 0:00:05]} g6 {[%emt 0:00:11]} 16. b4 {[%emt 0:00:09]} Kh8 {[%emt 0:00:37][%cal Of7f5]} 17. Bb3 {[%emt 0:00:00]} Ng7 {[%emt 0:00:10]} 18. Bd5 {[%emt 0:00:45]} (18. Bxf7 $2 {too greedy.} Bxe3 19. Qxe3 (19. fxe3 $2 Qg5 $19) (19. Rxe3 $2 Qe7 $19) 19... Rxf7 $19) 18... f5 {[%emt 0:00:14] ...f4 would now be deadly.} 19. exf5 {[%emt 0:00:05]} gxf5 {[%emt 0:00:02]} 20. Bxg5 {[%emt 0:00:27]} Qxg5 {[%emt 0:00:01]} 21. a4 {[%emt 0:00:14] [#]} (21. Bxc6 $14 bxc6 22. Qxc6) 21... e4 $1 $11 {[%emt 0:00:15]} 22. dxe4 {[%emt 0:00:24]} Ne5 {[%emt 0:00:02]} 23. Qd1 {[%emt 0:00:04] Hoping for exf5.} f4 $36 {[%emt 0:00:07][%mdl 3072] Black has compensation. Black fights for an advantage.} 24. Nf1 {[%emt 0:00:13][%mdl 8192] White does not recover from this.} ({White has to play} 24. Nf5 $1 $15) 24... f3 $19 {[%emt 0:00:14][%csl Gf3][%cal Rg5g2]} 25. g3 {[%emt 0:00:11][%cal Od1d2]} (25. Bxb7 $2 Qxg2#) 25... Nh5 {[%emt 0:00:16] ...Nf4 is the strong threat.} 26. Qc1 {[%emt 0:00:07]} (26. Bxb7 Nf4 27. Kh1 Qh5 $19 (27... Nxh3 $2 28. Qd4 $19)) (26. Re3 Nf4 27. h4 Nh3+ 28. Kh1 (28. Kh2 $2 Qg4 $19) 28... Nxf2+ 29. Kg1 Nxd1 30. hxg5 Nxe3 31. Nxe3) 26... Nf4 {[%emt 0:00:02]} 27. Kh2 {[%emt 0:00:04] [#]} Qh5 $1 {[%emt 0:00:38]} 28. gxf4 {[%emt 0:00:03] [#]} (28. Qxf4 Rxf4) 28... Qh4 $1 {[%emt 0:00:01]} 29. Ng3 {[%emt 0:00:04]} (29. Ne3 Qxf2+) 29... Ng4+ {[%emt 0:00:02]} 30. Kg1 {[%emt 0:00:00]} Qxh3 {[%emt 0:00:01] Weighted Error Value: White=1.21/Black=0.23 (precise) .  Loses game:     	White=1     	---        Mistake:       	White=2     	---        Inaccurate:     	White=1     	Black=1      OK:         	White=6     	Black=6      Best:        	---       	Black=2      Brilliant:      	---       	Black=1} 0-1

[Event "Vugar Gashimov Memorial Blitz 2024"]
[Site "Shusha"]
[Date "2024.09.28"]
[Round "13.1"]
[White "Suleymanli, Aydin"]
[Black "Mamedyarov, Shakhriyar"]
[Result "0-1"]
[ECO "C83"]
[WhiteElo "2632"]
[BlackElo "2733"]
[Annotator "TA"]
[PlyCount "92"]
[EventDate "2024.09.28"]
[EventType "tourn"]
[EventCountry "AZE"]
[SourceTitle "playchess.com"]
[Source "ChessBase"]
[SourceQuality "1"]
[TimeControl "180+2"]

{[%evp 19,92,31,29,21,53,37,55,16,2,10,6,17,28,0,0,0,0,0,0,20,97,0,0,3,54,66,69,50,86,12,17,-58,-97,-60,-70,-66,-92,-77,-48,-104,-103,-151,-162,-156,-160,-253,47,-230,-83,-595,-598,-590,-568,-554,-624,-610,-624,-606,-606,-639,-630,-854,-768,-900,-858,-858,-845,-1065,-1050,-986,-936,-4690,-4682,-2181,-1797]} 1. e4 {[%emt 0:00:01]} e5 {[%emt 0:00:00]} 2. Nf3 {[%emt 0:00:01]} Nc6 {[%emt 0:00:01]} 3. Bb5 {[%emt 0:00:01]} a6 {[%emt 0:00:00]} 4. Ba4 {[%emt 0:00:00]} Nf6 {[%emt 0:00:01]} 5. O-O {[%emt 0:00:02]} Nxe4 {[%emt 0:00:01]} 6. d4 {[%emt 0:00:01]} b5 {[%emt 0:00:00]} 7. Bb3 {[%emt 0:00:00]} d5 {[%emt 0:00:01]} 8. dxe5 {[%emt 0:00:02]} Be6 {[%emt 0:00:01]} 9. Nbd2 {[%emt 0:00:04]} Be7 {[%emt 0:00:05]} 10. c3 {[%emt 0:00:04]} Qd7 {[%emt 0:00:04]} 11. Bc2 {[%emt 0:00:07]} Bf5 {[%emt 0:00:03]} 12. Nb3 {[%emt 0:00:10]} Bg4 {[%emt 0:00:13]} 13. Nbd4 {[%emt 0:00:52] White is slightly better.} Nxd4 {[%emt 0:00:10]} 14. Qxd4 {[%emt 0:00:14]} c5 {[%emt 0:00:27]} 15. Qe3 {[%emt 0:00:05]} Rd8 {[%emt 0:00:11]} 16. Rd1 {[%emt 0:00:25]} Qc6 {[%emt 0:02:16]} 17. a4 {[%emt 0:00:13]} O-O {[%emt 0:00:00]} 18. axb5 {[%emt 0:00:01]} axb5 {[%emt 0:00:00]} 19. Ra7 {[%emt 0:00:01]} Qe6 {[%emt 0:00:00] Black is weak on the dark squares} (19... Rd7 $11 {keeps the balance.} 20. Rxd7 Bxd7) 20. h3 {[%emt 0:00:32]} (20. Rxe7 $1 $16 Qxe7 21. Rxd5) 20... Bf5 $11 {[%emt 0:00:00]} 21. Qe2 {[%emt 0:00:10][%cal Oc2b3]} Rfe8 {[%emt 0:00:00]} (21... Ra8 $1 $11 22. Rb7 Rfd8) 22. Be3 $14 {[%emt 0:00:09]} (22. Qxb5 Nxc3 23. bxc3 Bxc2 $17) 22... h6 {[%emt 0:00:00]} 23. Rda1 {[%emt 0:00:03][%cal Oa1a6]} (23. Qxb5 Nxc3 24. bxc3 Bxc2 $15) 23... Rb8 {[%emt 0:00:00]} 24. R1a6 {[%emt 0:00:07]} ({White should try} 24. Bd3 $16 {[%cal Oa1a6] And now R1a6! would win.} Rb6 25. g4 (25. Bxb5 Rd8 $16)) 24... Rb6 $11 {[%emt 0:00:00] [#]} 25. Rxe7 {[%emt 0:00:11]} Rxe7 $15 {[%emt 0:00:00]} 26. Ra8+ {[%emt 0:00:03]} Re8 {[%emt 0:00:00]} 27. Rxe8+ {[%emt 0:00:02]} Qxe8 {[%emt 0:00:00]} 28. Bxc5 {[%emt 0:00:02]} Ra6 {[%emt 0:00:00]} (28... Nxc5 {simplifies} 29. Bxf5 b4 30. Qd2 bxc3 31. bxc3 Qa8) 29. Bb4 {[%emt 0:00:06]} (29. Bd4 $1 $15) 29... Ra2 $17 {[%emt 0:00:00]} 30. Bb3 {[%emt 0:00:02]} (30. g4 $142 Be6 31. Nd4) 30... Ra1+ {[%emt 0:00:00]} 31. Kh2 {[%emt 0:00:00] [#]} Qe6 {[%emt 0:00:04] Black is more active.} 32. Qe3 {[%emt 0:00:10]} (32. Ba3 $17 {is a better defense.}) 32... Rb1 $2 {[%emt 0:00:05]} (32... Rf1 $19 33. Nd4 Qxe5+ 34. f4 Rxf4) 33. Ba3 $2 {[%emt 0:00:03][%mdl 8192]} (33. Nd4 $1 $14 {was forced to keep a grip.} Qd7 (33... Qxe5+ $2 {too greedy.} 34. f4 $18) 34. Bc2 Rxb2 35. Qc1 Rxc2 (35... Ra2 36. f3 $14) 36. Qxc2) 33... Bg6 {[%emt 0:00:07]} (33... Rf1 $19 {has better winning chances.} 34. Nd4 Qxe5+ 35. f4 Rxf4) 34. Qf4 $2 {[%emt 0:00:01][%mdl 8192]} (34. Bc2 $17 Ra1 35. Bb4) 34... Nxf2 $19 {[%emt 0:00:03] Black is clearly winning.} 35. Nd4 {[%emt 0:00:03]} Rh1+ {[%emt 0:00:01]} 36. Kg3 {[%emt 0:00:00]} Ne4+ {[%emt 0:00:01]} 37. Qxe4 {[%emt 0:00:02]} Bxe4 {[%emt 0:00:03]} 38. Nxe6 {[%emt 0:00:01]} fxe6 {[%emt 0:00:01][%mdl 4096] Endgame. KRB-KB} 39. Bc5 {[%emt 0:00:04]} Rb1 {[%emt 0:00:02]} 40. Bf2 {[%emt 0:00:02]} Rxb2 {[%emt 0:00:02]} 41. Bd1 {[%emt 0:00:00]} Rd2 {[%emt 0:00:02]} 42. Bg4 {[%emt 0:00:02]} Kf7 {[%emt 0:00:02] aiming for ...Rd3+.} 43. h4 {[%emt 0:00:04]} Rd3+ {[%emt 0:00:01]} 44. Kf4 {[%emt 0:00:01]} Rxc3 {[%emt 0:00:01][%cal Ob5b4] White must now prevent ...b4!} 45. g3 {[%emt 0:00:01]} b4 {[%emt 0:00:01] ( -> ...b3)} 46. Bd4 {[%emt 0:00:02]} Rc4 {[%emt 0:00:01] Weighted Error Value: White=0.71/Black=0.32.  Loses game:     	White=2     	---        Missed win:     	---       	Black=1      Mistake:       	White=6     	Black=3      Inaccurate:     	White=2     	Black=3      OK:         	White=10    	Black=7      Best:        	White=2     	Black=6} 0-1